lending/lending_fUSD_20260209
["ID","MTS","AMOUNT","RATE_DAILY","PERIOD"]
[404864006,1770627075938,-539.88,0.00044356,120]
[404864007,1770627075948,-500.0,0.00044356,120]
[404864008,1770627075959,-500.0,0.00044356,120]
[404864009,1770627075969,-539.88,0.00044356,120]
[404864010,1770627075979,-500.0,0.00044356,120]
[404864011,1770627075989,-539.88,0.00044356,120]
[404864012,1770627075998,-500.0,0.00044356,120]
[404864013,1770627076007,-570.1327077,0.00044356,120]
[404864014,1770627076017,-539.88,0.00044356,120]
[404864015,1770627076027,-500.0,0.00044356,120]
[404864016,1770627076037,-500.0,0.00044356,120]
[404864017,1770627076046,-500.0,0.00044356,120]
[404864018,1770627076056,-539.88,0.00044356,120]
[404864019,1770627076067,-500.0,0.00044356,120]
[404864020,1770627076077,-539.88,0.00044356,120]
[404864021,1770627076087,-500.0,0.00044356,120]
[404864022,1770627076099,-500.0,0.00044356,120]
[404864023,1770627076109,-500.0,0.00044356,120]
[404864024,1770627076119,-539.88,0.00044356,120]
[404864025,1770627076129,-500.0,0.00044356,120]
[404864026,1770627076139,-500.0,0.00044356,120]
[404864027,1770627076148,-500.0,0.00044356,120]
[404864028,1770627076157,-539.88,0.00044356,120]
[404864029,1770627076167,-500.0,0.00044356,120]
[404864030,1770627076177,-515.63303752,0.00044356,120]
[404864031,1770627076188,-500.0,0.00044356,120]
[404864032,1770627076198,-500.0,0.00044356,120]
[404864033,1770627076212,-539.88,0.00044356,120]
[404864034,1770627076222,-500.0,0.00044356,120]
[404864035,1770627076233,-539.88,0.00044356,120]
[404864036,1770627076243,-500.0,0.00044356,120]
[404864037,1770627076253,-500.0,0.00044356,120]
[404864038,1770627076263,-328.46778603,0.00044356,120]
[404864039,1770627076273,-539.88,0.00044356,120]
[404864040,1770627076283,-500.0,0.00044356,120]
[404864041,1770627076297,-500.0,0.00044356,120]
[404864042,1770627076307,-539.88,0.00044356,120]
[404864043,1770627076316,-577.62012558,0.00044356,120]
[404864044,1770627076326,-539.88,0.00044356,120]
[404864045,1770627076336,-539.88,0.00044356,120]
[404864046,1770627076346,-500.0,0.00044356,120]
[404864047,1770627076355,-500.0,0.00044356,120]
[404864048,1770627076364,-500.0,0.00044356,120]
[404864049,1770627076374,-500.0,0.00044356,120]
[404864050,1770627076383,-500.0,0.00044356,120]
[404864051,1770627076392,-500.0,0.00044356,120]
[404864052,1770627076402,-500.0,0.00044356,120]
[404864053,1770627076411,-500.0,0.00044356,120]
[404864054,1770627076423,-500.0,0.00044356,120]
[404864055,1770627076433,-500.0,0.00044356,120]
[404864056,1770627076442,-500.0,0.00044356,120]
[404864057,1770627076451,-500.0,0.00044356,120]
[404864058,1770627076461,-500.0,0.00044356,120]
[404864059,1770627076474,-500.0,0.00044356,120]
[404864060,1770627076483,-500.0,0.00044356,120]
[404864061,1770627076493,-500.0,0.00044356,120]
[404864062,1770627076503,-536.55947588,0.00044356,120]
[404864063,1770627076512,-500.0,0.00044356,120]
[404864064,1770627076521,-500.0,0.00044356,120]
[404864065,1770627076531,-500.0,0.00044356,120]
[404864066,1770627076540,-500.0,0.00044356,120]
[404864067,1770627076550,-500.0,0.00044356,120]
[404864068,1770627076561,-500.0,0.00044356,120]
[404864069,1770627076570,-500.0,0.00044356,120]
[404864070,1770627076579,-500.0,0.00044356,120]
[404864071,1770627076589,-500.0,0.00044356,120]
[404864072,1770627076598,-500.0,0.00044356,120]
[404864073,1770627076608,-500.0,0.00044356,120]
[404864074,1770627076617,-500.0,0.00044356,120]
[404864075,1770627076627,-500.0,0.00044356,120]
[404864076,1770627076637,-500.0,0.00044356,120]
[404864077,1770627076646,-500.0,0.00044356,120]
[404864078,1770627076657,-500.0,0.00044356,120]
[404864079,1770627076666,-500.0,0.00044356,120]
[404864080,1770627076675,-500.0,0.00044356,120]
[404864081,1770627076686,-503.50717903,0.00044356,120]
[404864082,1770627076700,-500.0,0.00044356,120]
[404864083,1770627076721,-500.0,0.00044356,120]
[404864084,1770627076738,-458.45589965,0.00044356,120]
[404864085,1770627076749,-500.0,0.00044356,120]
[404864086,1770627076760,-500.0,0.00044356,120]
[404864087,1770627076771,-500.0,0.00044356,120]
[404864088,1770627076782,-707.41,0.00044356,120]
[404864089,1770627076792,-620.38008897,0.00044356,120]
[404864090,1770627076802,-707.41,0.00044356,120]
[404864091,1770627076813,-707.41,0.00044356,120]
[404864092,1770627076823,-707.41,0.00044356,120]
[404864093,1770627076835,-707.41,0.00044356,120]
[404864094,1770627076845,-707.41,0.00044356,120]
[404864095,1770627076855,-707.41,0.00044356,120]
[404864096,1770627076864,-707.41,0.00044356,120]
[404864097,1770627076875,-707.41,0.00044356,120]
[404864098,1770627076884,-500.0,0.00044356,120]
[404864099,1770627076894,-13166.06,0.00044356,120]
[404864100,1770627076906,-500.0,0.00044356,120]
[404864101,1770627076916,-707.41,0.00044356,120]
[404864102,1770627076926,-13166.06,0.00044356,120]
[404864103,1770627076935,-500.0,0.00044356,120]
[404864104,1770627076944,-707.41,0.00044356,120]
[404864105,1770627076954,-500.0,0.00044356,120]
[404864106,1770627076965,-707.41,0.00044356,120]
[404864107,1770627076975,-13166.06,0.00044356,120]
[404864108,1770627076984,-500.0,0.00044356,120]
[404864109,1770627076993,-707.41,0.00044356,120]
[404864110,1770627077002,-13166.06,0.00044356,120]
[404864111,1770627077012,-500.0,0.00044356,120]
[404864112,1770627077021,-500.0,0.00044356,120]
[404864113,1770627077031,-707.41,0.00044356,120]
[404864114,1770627077040,-13166.06,0.00044356,120]
[404864115,1770627077049,-507.48635336,0.00044356,120]
[404864116,1770627077058,-596.44207754,0.00044356,120]
[404864117,1770627077067,-707.41,0.00044356,120]
[404864118,1770627077076,-13166.06,0.00044356,120]
[404864119,1770627077086,-13166.06,0.00044356,120]
[404864120,1770627077095,-13166.06,0.00044356,120]
[404864121,1770627077104,-500.0,0.00044356,120]
[404864122,1770627077113,-13166.06,0.00044356,120]
[404864123,1770627077123,-500.0,0.00044356,120]
[404864124,1770627077131,-13166.06,0.00044356,120]
[404864125,1770627077141,-500.0,0.00044356,120]
[404864126,1770627077150,-13166.06,0.00044356,120]
[404864127,1770627077159,-500.0,0.00044356,120]
[404864128,1770627077168,-13166.06,0.00044356,120]
[404864129,1770627077177,-500.0,0.00044356,120]
[404864130,1770627077187,-500.0,0.00044356,120]
[404864131,1770627077196,-500.0,0.00044356,120]
[404864132,1770627077205,-13166.06,0.00044356,120]
[404864133,1770627077214,-500.0,0.00044356,120]
[404864134,1770627077224,-500.0,0.00044356,120]
[404864135,1770627077232,-13166.06,0.00044356,120]
[404864136,1770627077242,-500.0,0.00044356,120]
[404864137,1770627077251,-13166.06,0.00044356,120]
[404864138,1770627077260,-500.0,0.00044356,120]
[404864139,1770627077269,-271.78514928,0.00044356,120]
[404864140,1770627077278,-500.0,0.00044356,120]
[404864141,1770627077287,-500.0,0.00044356,120]
[404864142,1770627077296,-500.0,0.00044356,120]
[404864143,1770627077305,-500.0,0.00044356,120]
[404864144,1770627077315,-500.0,0.00044356,120]
[404864145,1770627077325,-500.0,0.00044356,120]
[404864146,1770627077334,-514.99222547,0.00044356,120]
[404864147,1770627077384,-1668.702915,0.00044356,120]
[404864148,1770627077394,-500.0,0.00044356,120]
[404864149,1770627077403,-1668.702915,0.00044356,120]
[404864150,1770627077412,-500.0,0.00044356,120]
[404864151,1770627077421,-505.4954385,0.00044356,120]
[404864152,1770627077430,-40.04191992,0.00044356,120]
[404864153,1770627077467,-382.06507283,0.00044356,120]
[404864154,1770627077478,-77.89300725,0.00044356,120]
[404864155,1770627077487,-1668.702915,0.00044356,120]
[404864156,1770627077496,-296.61108829,0.00044356,120]
[404864157,1770627077507,-603.41291798,0.00044356,120]
[404864158,1770627077518,-768.67890873,0.00044356,120]
[404864159,1770627077528,-500.0,0.00044356,120]
[404864160,1770627077537,-500.0,0.00044356,120]
[404864161,1770627077546,-503.56278348,0.00044356,120]
[404864162,1770627077556,-500.0,0.00044356,120]
[404864163,1770627077565,-1668.702915,0.00044356,120]
[404864164,1770627077574,-500.0,0.00044356,120]
[404864165,1770627077583,-1668.702915,0.00044356,120]
[404864166,1770627077593,-500.0,0.00044356,120]
[404864167,1770627077603,-1668.702915,0.00044356,120]
[404864168,1770627077612,-500.0,0.00044356,120]
[404864169,1770627077621,-1668.702915,0.00044356,120]
[404864170,1770627077631,-96.2105319,0.00044356,120]
[404864171,1770627077654,-403.7894681,0.00044356,120]
[404864172,1770627077663,-500.0,0.00044356,120]
[404864173,1770627077672,-1668.702915,0.00044356,120]
[404864174,1770627077681,-251.3482773,0.00044356,120]
[404864175,1770627077693,-248.6517227,0.00044356,120]
[404864176,1770627077702,-500.0,0.00044356,120]
[404864177,1770627077712,-1668.702915,0.00044356,120]
[404864178,1770627077721,-500.0,0.00044356,120]
[404864179,1770627077731,-500.0,0.00044356,120]
[404864180,1770627077740,-500.0,0.00044356,120]
[404864181,1770627077748,-1668.702915,0.00044356,120]
[404864182,1770627077757,-500.0,0.00044356,120]
[404864183,1770627077766,-500.0,0.00044356,120]
[404864184,1770627077777,-1668.702915,0.00044356,120]
[404864185,1770627077788,-500.0,0.00044356,120]
[404864186,1770627077798,-500.0,0.00044356,120]
[404864187,1770627077809,-500.0,0.00044356,120]
[404864188,1770627077818,-500.0,0.00044356,120]
[404864189,1770627077827,-500.0,0.00044356,120]
[404864190,1770627077839,-500.0,0.00044356,120]
[404864191,1770627077849,-500.0,0.00044356,120]
[404864192,1770627077858,-500.0,0.00044356,120]
[404864193,1770627077868,-500.0,0.00044356,120]
[404864194,1770627077877,-1668.702915,0.00044356,120]
[404864195,1770627077886,-482.91478507,0.00044356,120]
[404864196,1770627077895,-500.0,0.00044356,120]
[404864197,1770627077906,-500.0,0.00044356,120]
[404864198,1770627077916,-500.0,0.00044356,120]
[404864199,1770627077925,-1668.702915,0.00044356,120]
[404864200,1770627077936,-500.0,0.00044356,120]
[404864201,1770627077946,-500.0,0.00044356,120]
[404864202,1770627077956,-500.0,0.00044356,120]
[404864203,1770627077965,-500.0,0.00044356,120]
[404864204,1770627077975,-800.41891725,0.00044356,120]
[404864205,1770627077987,-868.28399775,0.00044356,120]
[404864206,1770627077996,-500.0,0.00044356,120]
[404864207,1770627078004,-61.83225407,0.00044356,120]
[404864208,1770627078017,-438.16774593,0.00044356,120]
[404864209,1770627078025,-136.45055464,0.00044356,120]
[404864224,1770627723449,-489.0,0.00032616,2]
[404864225,1770627723462,-22.0,0.00032616,2]
[404864226,1770627723471,-250.0,0.00035878,2]
[404864227,1770627723480,-168.0,0.00038196,2]
[404864228,1770627723490,-71.0,0.00038598,2]
[404864235,1770628148135,1650.83427,7.945e-05,2]
[404864254,1770628231523,-151.9607,0.00032516,2]
[404864255,1770628231533,-510.0,0.00032616,2]
[404864256,1770628231542,-764.77933751,0.00035768,120]
[404864257,1770628231552,-250.0,0.00035768,2]
[404864258,1770628231563,-1000.0,0.00037745,30]
[404864259,1770628231573,-1000.0,0.00038312,30]
[404864260,1770628231583,-168.59549673,0.00038498,2]
[404864261,1770628231592,-148.15348372,0.00038498,2]
[404864262,1770628231605,-1059.18764589,0.00038498,2]
[404864263,1770628231627,-676.92004919,0.00038498,2]
[404864264,1770628231638,-161.28292236,0.00038498,2]
[404864265,1770628231652,-277.8284643,0.00038498,2]
[404864266,1770628231663,-5636.38195568,0.00038498,2]
[404864267,1770628231672,-2500.0,0.00038598,2]
[404864268,1770628231683,-200.0,0.00038661,2]
[404864269,1770628231693,-1000.0,0.00038661,2]
[404864270,1770628231703,-184.986,0.00038688,52]
[404864271,1770628231714,-1331.593,0.00038688,52]
[404864272,1770628231723,-580.64,0.00038797,30]
[404864273,1770628231735,-580.64,0.00038797,30]
[404864275,1770628231744,-580.64,0.00038797,30]
[404864277,1770628231753,-1000.0,0.00038799,2]
[404864279,1770628231763,-413.0,0.000391,5]
[404864281,1770628231772,-277.82846428,0.00039138,2]
[404864283,1770628231781,-168.59549669,0.00039321,2]
[404864285,1770628231790,-277.82846428,0.00039778,2]
[404864287,1770628231801,-580.64,0.00039899,30]
[404864289,1770628231810,-580.64,0.00039899,30]
[404864291,1770628231819,-580.64,0.00039899,30]
[404864293,1770628231829,-580.64,0.00039899,30]
[404864295,1770628231839,-580.64,0.00039899,30]
[404864297,1770628231848,-580.64,0.00039899,30]
[404864299,1770628231858,-580.64,0.00039899,30]
[404864300,1770628231868,-580.64,0.00039899,30]
[404864301,1770628231881,-580.64,0.00039899,30]
[404864302,1770628231891,-580.64,0.00039899,30]
[404864303,1770628231901,-580.64,0.00039899,30]
[404864304,1770628231911,-580.64,0.00039899,30]
[404864305,1770628231920,-580.64,0.00039899,30]
[404864306,1770628231929,-580.64,0.00039899,30]
[404864307,1770628231939,-239.81,0.000399,30]
[404864308,1770628231948,-185.99,0.00039911,2]
[404864309,1770628231957,-580.64,0.00039999,30]
[404864310,1770628231968,-50000.0,0.0004,90]
[404864311,1770628231978,-8036.79577118,0.0004,120]
[404864312,1770628231989,-528.12118031,0.0004,120]
[404864313,1770628232001,-1905.14323361,0.0004,120]
[404864314,1770628232013,-1741.76684916,0.0004,120]
[404864315,1770628232025,-3558.18510261,0.0004,120]
[404864316,1770628232040,-3540.27357432,0.0004,120]
[404864317,1770628232052,-3189.71428881,0.0004,120]
[404864318,1770628232062,-150.0,0.00040009,7]
[404864319,1770628232071,-150.0,0.00040009,7]
[404864320,1770628232080,-150.0,0.00040009,7]
[404864321,1770628232090,-150.0,0.00040009,7]
[404864322,1770628232099,-150.0,0.00040009,7]
[404864323,1770628232108,-150.00000001,0.00040009,7]
[404864324,1770628232117,-150.0,0.00040009,7]
[404864325,1770628232126,-168.59549669,0.00040143,15]
[404864326,1770628232135,-168.0,0.00040234,2]
[404864327,1770628232144,-1000.0,0.000403,2]
[404864328,1770628232154,-8442.04675015,0.00040375,120]
[404864329,1770628232165,-1694.059,0.00040375,120]
[404864330,1770628232176,-2929.71303019,0.00040375,120]
[404864331,1770628232187,-1247.39962148,0.00040375,120]
[404864332,1770628232198,-429.03935746,0.00040375,120]
[404864335,1770628237859,-294.65,0.000325,2]
[404864336,1770628237882,-7757.74224072,0.00040375,120]
[404864337,1770628237899,-277.82846428,0.00040417,15]
[404864338,1770628237910,-3667.01,0.00040469,2]
[404864339,1770628237921,-173.96,0.00040591,2]
[404864340,1770628237931,-2555.0,0.00040648,5]
[404864341,1770628237941,-22500.0,0.0004075,120]
[404864342,1770628237952,-168.59549669,0.00040966,15]
[404864343,1770628237963,-277.82846428,0.00041057,15]
[404864344,1770628237972,-22500.0,0.00041125,120]
[404864345,1770628237983,-476.82,0.00041257,120]
[404864346,1770628237993,-5636.38195567,0.0004144,2]
[404864347,1770628238004,-18590.68,0.000415,120]
[404864348,1770628238016,-277.82846428,0.00041697,15]
[404864349,1770628238027,-153.28,0.00041707,120]
[404864350,1770628238038,-168.59549669,0.00041788,15]
[404864351,1770628238050,-153.28,0.00041807,120]
[404864352,1770628238061,-153.28,0.00041907,120]
[404864353,1770628238073,-153.28,0.00042007,120]
[404864354,1770628238084,-153.28,0.00042107,120]
[404864355,1770628238094,-153.28,0.00042207,120]
[404864356,1770628238105,-918.0,0.0004229,2]
[404864357,1770628238117,-1206.0,0.0004229,2]
[404864358,1770628238129,-1325.21,0.0004229,2]
[404864360,1770628238139,-6587.0,0.0004229,2]
[404864362,1770628238149,-153.28,0.00042307,120]
[404864364,1770628238160,-277.82846428,0.00042337,15]
[404864366,1770628238170,-153.28,0.00042407,120]
[404864368,1770628238179,-2000.0,0.000425,2]
[404864370,1770628238190,-153.28,0.00042507,120]
[404864372,1770628238200,-153.28,0.00042607,120]
[404864374,1770628238210,-168.59549669,0.00042611,15]
[404864376,1770628238220,-153.28,0.00042707,120]
[404864378,1770628238230,-153.28,0.00042807,120]
[404864380,1770628238241,-3485.0,0.00042875,2]
[404864382,1770628238254,-616.0,0.00042875,2]
[404864384,1770628238264,-1272.0,0.00042875,2]
[404864386,1770628238276,-153.28,0.00042907,120]
[404864388,1770628238287,-277.82846428,0.00042976,15]
[404864390,1770628238300,-5200.0,0.00043,120]
[404864392,1770628238311,-5200.0,0.00043,120]
[404864394,1770628238324,-5200.0,0.00043,120]
[404864395,1770628238334,-153.36448871,0.00043007,120]
[404864396,1770628238345,-32948.0,0.00043071,30]
[404864397,1770628238355,-153.375037,0.00043071,120]
[404864398,1770628238367,-153.555616,0.00043071,120]
[404864399,1770628238378,-183.194782,0.00043071,120]
[404864400,1770628238389,-178.210169,0.00043071,120]
[404864401,1770628238399,-500.610875,0.00043071,120]
[404864402,1770628238409,-500.610875,0.00043071,120]
[404864403,1770628238420,-500.610875,0.00043071,120]
[404864404,1770628238431,-500.610875,0.00043071,120]
[404864405,1770628238443,-151.0,0.00043071,120]
[404864406,1770628238453,-163.149172,0.00043071,120]
[404864407,1770628238465,-151.0,0.00043071,120]
[404864408,1770628238476,-273.25366484,0.00043106,2]
[404864409,1770628238487,-239.81,0.000432,30]
[404864410,1770628238499,-165.88513622,0.00043415,11]
[404864411,1770628238509,-168.59549669,0.00043433,15]
[404864412,1770628238521,-1000.0,0.00043494,2]
[404864413,1770628238534,-900.71279026,0.00043498,2]
[404864414,1770628238545,-364.64929113,0.000435,120]
[404864415,1770628238555,-32948.0,0.00043515,30]
[404864416,1770628238566,-487.0,0.00043515,2]
[404864417,1770628238577,-487.0,0.00043515,2]
[404864418,1770628238590,-487.0,0.00043515,2]
[404864419,1770628238601,-945.16,0.00043515,2]
[404864420,1770628238612,-277.82846428,0.00043616,15]
[404864421,1770628238623,-150.0,0.00043766,120]
[404864422,1770628238634,-2254.84,0.00043835,120]
[404864423,1770628238645,-32948.0,0.00043959,30]
[404864424,1770628238656,-506.53246669,0.00043973,10]
[404864425,1770628238666,-235.67964802,0.00043973,10]
[404864426,1770628238677,-502.3410841,0.00043973,10]
[404864427,1770628238688,-500.0,0.00043973,10]
[404864428,1770628238699,-500.0,0.00043973,10]
[404864429,1770628238710,-500.0,0.00043973,10]
[404864430,1770628238721,-500.0,0.00043973,10]
[404864431,1770628238731,-503.2007828,0.00043973,10]
[404864432,1770628238743,-503.50531251,0.00043973,7]
[404864433,1770628238754,-500.0,0.00043973,10]
[404864434,1770628238765,-500.0,0.00043973,10]
[404864435,1770628238777,-500.0,0.00043973,10]
[404864436,1770628238788,-507.42644948,0.00043973,10]
[404864437,1770628238798,-504.39613681,0.00043973,10]
[404864438,1770628238809,-500.0,0.00043973,10]
[404864439,1770628238819,-578.77144029,0.00043973,10]
[404864440,1770628238829,-1000.0,0.00044,2]
[404864441,1770628238841,-15491.1588883,0.00044,120]
[404864442,1770628238852,-84889.94918157,0.00044,120]
[404864443,1770628238864,-151.0,0.00044,60]
[404864444,1770628238875,-154.208958,0.00044,120]
[404864445,1770628238887,-339.4449151,0.00044065,2]
[404864446,1770628238898,-1345.57962893,0.00044102,2]
[404864447,1770628238909,-6386.59,0.000442,120]
[404864448,1770628238920,-237.8504,0.00044256,120]
[404864449,1770628238931,-10000.0,0.00044256,2]
[404864450,1770628238942,-168.59549669,0.00044256,15]
[404864451,1770628238953,-160.05580748,0.00044256,2]
[404864452,1770628238964,-277.82846428,0.00044256,15]
[404864453,1770628238976,-753.10143155,0.00044256,2]
[404864454,1770628238997,-753.10143155,0.00044281,2]
[404864455,1770628239008,-150.0,0.00044297,120]
[404864456,1770628239018,-150.0,0.000443,10]
[404864457,1770628239029,-631.27272042,0.000443,2]
[404864458,1770628239039,-753.10143155,0.00044306,2]
[404864459,1770628239050,-753.10143155,0.00044332,2]
[404864460,1770628239060,-631.2727204,0.00044341,2]
[404864461,1770628239070,-193.67923823,0.00044345,7]
[404864462,1770628239080,-1000.0,0.00044353,120]
[404864463,1770628239089,-256.366,0.00044353,120]
[404864464,1770628239099,-580.64,0.00044355,30]
[404864465,1770628239110,-580.64,0.00044355,30]
[404864466,1770628239121,-580.64,0.00044355,30]
[404864467,1770628239131,-580.64,0.00044355,30]
[404864468,1770628239142,-580.64,0.00044355,30]
[404864469,1770628239152,-580.69573753,0.00044355,30]
[404864470,1770628239163,-40647.49867875,0.00044356,53]
[404864471,1770628239173,-182.35346532,0.00044356,120]
[404864472,1770628239184,-503.49449505,0.00044356,90]
[404864473,1770628239194,-2320.7447779,0.00044356,2]
[404864474,1770628239204,-500.0,0.00044356,120]
[404864475,1770628239214,-510.0305959,0.00044356,120]
[404864476,1770628239225,-500.0,0.00044356,120]
[404864477,1770628239236,-500.0,0.00044356,120]
[404864478,1770628239249,-510.41077862,0.00044356,120]
[404864479,1770628239263,-503.25154252,0.00044356,120]
[404864480,1770628239272,-500.0,0.00044356,120]
[404864481,1770628239281,-524.85770155,0.00044356,120]
[404864482,1770628239292,-500.0,0.00044356,120]
[404864483,1770628239302,-500.0,0.00044356,120]
[404864484,1770628239311,-500.0,0.00044356,120]
[404864485,1770628239322,-500.0,0.00044356,120]
[404864486,1770628239332,-500.0,0.00044356,120]
[404864487,1770628239341,-500.0,0.00044356,120]
[404864488,1770628239351,-500.0,0.00044356,120]
[404864489,1770628239360,-513.06447969,0.00044356,120]
[404864490,1770628239369,-500.0,0.00044356,120]
[404864491,1770628239379,-500.0,0.00044356,120]
[404864492,1770628239388,-500.0,0.00044356,120]
[404864493,1770628239398,-500.0,0.00044356,120]
[404864494,1770628239407,-500.0,0.00044356,120]
[404864495,1770628239417,-500.0,0.00044356,120]
[404864496,1770628239426,-500.0,0.00044356,120]
[404864497,1770628239436,-500.0,0.00044356,120]
[404864498,1770628239446,-500.0,0.00044356,120]
[404864499,1770628239455,-500.0,0.00044356,120]
[404864501,1770628239465,-500.0,0.00044356,120]
[404864502,1770628239476,-567.48805276,0.00044356,120]
[404864503,1770628239486,-500.0,0.00044356,120]
[404864504,1770628239496,-513.59887041,0.00044356,120]
[404864505,1770628239507,-500.0,0.00044356,120]
[404864506,1770628239517,-507.39544656,0.00044356,120]
[404864507,1770628239526,-500.0,0.00044356,120]
[404864508,1770628239536,-500.0,0.00044356,120]
[404864509,1770628239546,-500.0,0.00044356,120]
[404864510,1770628239555,-609.5117641,0.00044356,120]
[404864511,1770628239565,-500.0,0.00044356,120]
[404864512,1770628239575,-258.11659301,0.00044356,120]
[404864513,1770628239586,-500.0,0.00044356,120]
[404864514,1770628239596,-530.02443261,0.00044356,120]
[404864515,1770628239605,-500.0,0.00044356,120]
[404864516,1770628239615,-500.0,0.00044356,120]
[404864517,1770628239625,-500.0,0.00044356,120]
[404864518,1770628239635,-500.0,0.00044356,120]
[404864519,1770628239646,-500.0,0.00044356,60]
[404864520,1770628239655,-500.0,0.00044356,120]
[404864521,1770628239665,-500.0,0.00044356,120]
[404864522,1770628239675,-500.0,0.00044356,120]
[404864523,1770628239685,-500.0,0.00044356,120]
[404864524,1770628239695,-500.0,0.00044356,120]
[404864525,1770628239705,-500.0,0.00044356,120]
[404864526,1770628239717,-500.0,0.00044356,120]
[404864527,1770628239727,-623.18474102,0.00044356,120]
[404864528,1770628239737,-500.0,0.00044356,120]
[404864529,1770628239747,-500.0,0.00044356,120]
[404864530,1770628239758,-500.0,0.00044356,120]
[404864531,1770628239767,-500.0,0.00044356,120]
[404864532,1770628239779,-500.0,0.00044356,120]
[404864533,1770628239790,-500.0,0.00044356,120]
[404864534,1770628239800,-500.0,0.00044356,120]
[404864535,1770628239811,-500.0,0.00044356,120]
[404864536,1770628239821,-500.0,0.00044356,120]
[404864537,1770628239832,-500.0,0.00044356,120]
[404864538,1770628239844,-500.0,0.00044356,120]
[404864539,1770628239854,-504.10510441,0.00044356,120]
[404864540,1770628239864,-500.0,0.00044356,120]
[404864541,1770628239875,-500.0,0.00044356,120]
[404864542,1770628239885,-500.0,0.00044356,120]
[404864543,1770628239896,-578.65326882,0.00044356,120]
[404864544,1770628239907,-500.0,0.00044356,120]
[404864545,1770628239917,-500.0,0.00044356,120]
[404864547,1770628239928,-500.0,0.00044356,120]
[404864549,1770628239937,-500.0,0.00044356,120]
[404864551,1770628239947,-500.0,0.00044356,120]
[404864553,1770628239958,-530.42847658,0.00044356,120]
[404864555,1770628239968,-500.0,0.00044356,120]
[404864557,1770628239977,-500.0,0.00044356,120]
[404864559,1770628239988,-639.77255091,0.00044356,120]
[404864561,1770628239998,-500.0,0.00044356,120]
[404864563,1770628240010,-500.0,0.00044356,120]
[404864565,1770628240020,-500.0,0.00044356,120]
[404864567,1770628240030,-500.0,0.00044356,120]
[404864569,1770628240039,-500.0,0.00044356,120]
[404864571,1770628240049,-500.0,0.00044356,120]
[404864573,1770628240059,-500.0,0.00044356,120]
[404864575,1770628240069,-500.0,0.00044356,120]
[404864577,1770628240079,-500.0,0.00044356,120]
[404864579,1770628240089,-500.0,0.00044356,120]
[404864581,1770628240099,-512.58792486,0.00044356,120]
[404864583,1770628240108,-500.0,0.00044356,120]
[404864585,1770628240118,-500.0,0.00044356,120]
[404864587,1770628240128,-500.0,0.00044356,120]
[404864589,1770628240138,-500.0,0.00044356,120]
[404864592,1770628240148,-500.0,0.00044356,120]
[404864593,1770628240158,-500.0,0.00044356,120]
[404864596,1770628240167,-500.0,0.00044356,120]
[404864598,1770628240178,-500.0,0.00044356,120]
[404864600,1770628240188,-500.0,0.00044356,120]
[404864602,1770628240198,-500.0,0.00044356,120]
[404864604,1770628240209,-500.0,0.00044356,120]
[404864606,1770628240219,-500.0,0.00044356,120]
[404864608,1770628240228,-518.83491766,0.00044356,120]
[404864610,1770628240239,-500.0,0.00044356,120]